bitfinex/quotes_ETHUSD_20250406
["timestamp","ask_amount","ask_price","bid_price","bid_amount"]
[1743947760869,0.05,1751.9,1751.4,3.99677]
[1743947761187,0.05,1751.9,1750.8,41.156]
[1743947761393,0.05,1751.9,1751.4,3.99663]
[1743947761886,0.05,1751.9,1751.6,3.99616]
[1743947762058,0.05,1751.9,1751.7,0.05706978]
[1743947762259,0.05,1751.9,1751.8,45.11188]
[1743947762654,0.05,1751.9,1751.8,41.116]
[1743947762856,0.05,1752.9,1752.4,3.99439]
[1743947763060,0.05,1752.9,1752.1,5.63507]
[1743947763283,0.05,1752.9,1752.2,4.05185164]
[1743947763530,0.05,1752.9,1752.2,0.56917516]
[1743947763693,0.05,1752.9,1752.1,2.1899]
[1743947763694,0.05,1752.9,1752.4,3.99441]
[1743947763891,0.05,1752.9,1752.4,7.98883]
[1743947764306,0.05,1752.9,1752.3,0.55]
[1743947764511,0.05,1752.9,1752.4,3.99452]
[1743947764678,0.05,1752.9,1752.4,3.99436]
[1743947764881,0.05,1752.9,1752.2,4.558479]
[1743947765137,0.05,1752.9,1752.1,5.63496]
[1743947765410,5.62069,1752.9,1752.1,1.6399]
[1743947765605,1.6272,1752.9,1752.0,3.99524]
[1743947765792,3.0,1752.8,1752.0,3.99524]
[1743947765987,1.69356648,1752.9,1751.8,45.11185]
[1743947766216,1.6272,1752.9,1752.1,3.99506]
[1743947766424,3.99383,1752.8,1751.9,6.02781774]
[1743947766578,3.0,1752.7,1751.8,41.116]
[1743947766783,3.0,1752.4,1751.8,41.116]
[1743947766984,0.06636648,1752.4,1751.8,41.116]
[1743947767196,3.99467,1752.4,1751.8,41.116]
[1743947767693,3.99477,1752.3,1751.8,41.116]
[1743947767888,1.5772,1752.3,1751.8,41.116]
[1743947768094,1.5772,1752.3,1751.9,0.05707263]
[1743947769481,3.0,1752.6,1751.8,45.11176]
[1743947769678,0.92467907,1752.5,1751.8,41.116]
[1743947769918,0.92467907,1752.5,1751.9,3.99556]
[1743947770109,0.41097212,1752.5,1751.9,3.99556]
[1743947770302,1.6338,1752.7,1751.8,41.116]
[1743947770503,3.99406,1752.6,1751.8,45.11188]
[1743947770709,5.62782,1752.7,1751.9,3.99562]
[1743947770917,3.41125381,1752.6,1751.8,45.11188]
[1743947771123,0.51408811,1752.5,1751.8,49.10776]
[1743947771324,0.51408811,1752.5,1751.9,7.99116]
[1743947771517,0.51408811,1752.5,1751.9,3.99548]
[1743947771823,0.51408811,1752.5,1752.1,3.99508]
[1743947772003,0.51408811,1752.5,1751.8,45.11186]
[1743947772004,0.51408811,1752.5,1751.9,3.99554]
[1743947772410,5.62767,1752.7,1751.9,3.99554]
[1743947772606,5.62767,1752.7,1751.8,45.11188]
[1743947772788,4.91930718,1752.6,1751.8,45.11188]
[1743947773123,0.47752731,1752.6,1751.8,49.10776]
[1743947773334,5.69403648,1752.7,1751.9,4.05271231]
[1743947773629,3.9944,1752.5,1751.8,41.116]
[1743947773806,2.66893113,1752.7,1751.8,41.116]
[1743947773807,4.06108648,1752.4,1751.8,41.116]
[1743947774317,0.51361519,1752.3,1751.8,41.116]
[1743947774522,0.92456075,1752.3,1751.8,45.1118]
[1743947774829,0.51361519,1752.3,1751.8,41.116]
[1743947775034,7.06049648,1752.6,1751.8,41.116]
[1743947775197,0.51373906,1752.5,1751.8,45.11186]
[1743947775398,4.50805906,1752.5,1751.8,41.116]
[1743947775705,3.99432,1752.5,1751.8,41.116]
[1743947775910,0.06636648,1752.5,1751.8,41.116]
[1743947776120,4.06070648,1752.5,1751.8,41.116]
[1743947776328,3.0,1752.2,1751.8,41.116]
[1743947776521,6.99499,1752.2,1751.8,41.116]
[1743947776723,1.60256648,1752.1,1751.8,41.116]
[1743947777017,1.5362,1752.1,1751.8,41.116]
[1743947777406,8.53049,1752.5,1751.8,41.116]
[1743947777732,0.5694,1752.3,1751.8,45.11176]
[1743947778310,8.59695648,1752.5,1751.8,41.116]
[1743947778505,0.5694,1752.4,1751.8,41.116]
[1743947778808,0.5694,1752.4,1751.8,45.11183]
[1743947779336,0.63576648,1752.4,1751.8,41.116]
[1743947779509,3.63576648,1752.4,1751.8,41.116]
[1743947779709,0.63576648,1752.4,1751.8,41.116]
[1743947780200,7.63038648,1752.4,1751.8,41.116]
[1743947780537,0.41118841,1752.3,1751.8,41.116]
[1743947780900,0.41118841,1752.3,1751.9,0.05707207]
[1743947781102,3.63576648,1752.4,1751.9,0.05707207]
[1743947781337,0.51398416,1752.3,1751.9,0.05707207]
[1743947781850,0.51398416,1752.3,1751.9,4.05268207]
[1743947782146,0.06636648,1752.3,1751.8,41.116]
[1743947782602,3.4112003,1752.2,1751.8,41.116]
[1743947782944,0.06636648,1752.1,1751.8,41.116]
[1743947783148,3.0,1752.2,1751.8,41.116]
[1743947783297,0.41118624,1752.1,1751.8,41.116]
[1743947783497,0.41118624,1752.1,1751.9,3.9955]
[1743947783713,0.5694,1752.4,1751.9,3.9955]
[1743947783948,0.06636648,1752.3,1751.8,41.116]
[1743947784249,1.60256648,1752.5,1751.8,45.11175]
[1743947784541,0.63576648,1752.4,1751.8,41.116]
[1743947784745,0.63576648,1752.4,1751.9,0.05706782]
[1743947785103,0.63576648,1752.4,1751.8,41.116]
[1743947785305,0.51420254,1752.3,1752.0,3.99543]
[1743947785817,0.51420254,1752.3,1751.8,45.11187]
[1743947786022,0.63576648,1752.4,1751.8,45.11187]
[1743947786219,0.63576648,1752.4,1751.8,41.116]
[1743947786424,4.63030648,1752.4,1751.8,41.116]
[1743947786739,4.65185513,1752.4,1751.8,41.116]
[1743947786907,3.0,1751.9,1751.1,45.08839]
[1743947787111,1.5362,1751.8,1751.2,3.99724]
[1743947787303,0.06636648,1751.7,1751.1,41.091]
[1743947787506,8.59857648,1751.8,1751.1,41.091]
[1743947787703,12.59464648,1751.8,1751.1,41.091]
[1743947788003,0.92722951,1751.7,1751.1,41.091]
[1743947788198,3.47847238,1751.6,1751.1,41.091]
[1743947788531,3.06636648,1751.6,1751.1,41.091]
[1743947788703,7.06274648,1751.6,1751.1,41.091]
[1743947788899,3.06636648,1751.6,1751.1,41.091]
[1743947789125,0.06636648,1751.6,1751.2,0.05709782]
[1743947789345,0.41242119,1751.7,1751.2,3.9972]
[1743947789521,0.41242119,1751.7,1751.1,49.08579]
[1743947789737,0.06636648,1751.6,1751.1,41.091]
[1743947791329,3.0,1751.4,1751.1,41.091]
[1743947791628,0.06636648,1751.4,1751.1,41.091]
[1743947791837,0.06636648,1751.5,1751.1,41.091]
[1743947792035,3.49426522,1751.7,1751.2,0.05710191]
[1743947792236,3.0,1751.7,1751.1,41.091]
[1743947792539,3.0,1751.7,1751.2,3.99704]
[1743947792735,3.0,1751.7,1751.1,42.7138]
[1743947792907,2.82718529,1751.7,1751.4,3.99667]
[1743947793107,2.82718529,1751.7,1751.2,3.99724]
[1743947793307,2.82718529,1751.7,1751.3,3.99695]
[1743947793606,2.82718529,1751.7,1751.4,0.05708678]
[1743947794216,2.82718529,1751.7,1751.2,3.99709]
[1743947794421,2.82718529,1751.7,1751.3,4.05407677]
[1743947795009,2.82718529,1751.7,1751.3,8.05098677]
[1743947795316,2.82718529,1751.7,1751.1,41.091]
[1743947795317,5.69263559,1751.8,1751.4,7.99331]
[1743947795514,5.69263559,1751.8,1751.3,3.99701]
[1743947795714,5.69263559,1751.8,1751.1,45.08837]
[1743947795940,5.69263559,1751.8,1751.2,3.99716]
[1743947796109,5.69263559,1751.8,1751.4,3.99661]
[1743947796511,5.69263559,1751.8,1751.7,3.99611]
[1743947797044,5.69263559,1751.8,1751.7,4.0531867]
[1743947797539,5.69263559,1751.8,1751.7,3.99611]
[1743947798519,5.69263559,1751.8,1751.6,3.99634]
[1743947798867,5.69263559,1751.8,1751.7,13.456]
[1743947800252,5.69263559,1752.0,1751.7,13.456]
[1743947800436,5.69263559,1752.0,1751.6,13.359]
[1743947800957,3.0,1751.9,1751.1,46.6182]
[1743947801108,3.0,1751.9,1750.7,4.64490835]
[1743947801109,1.5854,1751.8,1750.8,13.307]
[1743947801459,3.0,1751.3,1750.8,13.307]
[1743947801750,3.06636648,1751.4,1750.8,13.307]
[1743947801953,3.06636648,1751.4,1750.9,0.05710381]
[1743947802159,4.5854,1751.1,1750.8,13.279]
[1743947802311,1.5854,1751.1,1750.8,13.279]
[1743947804177,3.0,1751.0,1750.8,13.279]
[1743947804478,5.69263559,1751.1,1750.9,0.05711132]
[1743947804779,5.69263559,1751.1,1750.8,13.279]
[1743947805078,7.27803559,1751.1,1750.8,13.279]
[1743947805256,7.34440207,1751.1,1750.8,13.279]
[1743947805585,7.27803559,1751.1,1750.8,13.279]
[1743947805975,5.69263559,1751.1,1750.8,17.27711]
[1743947806156,5.69263559,1751.1,1750.8,19.40466]
[1743947806488,5.69263559,1751.1,1750.8,15.40655]
[1743947806669,5.69263559,1751.1,1750.8,13.279]
[1743947806851,5.69263559,1751.1,1750.8,17.27702]
[1743947807481,5.69263559,1751.0,1750.8,17.27702]
[1743947807681,5.69263559,1751.0,1750.8,13.279]
[1743947809582,5.69263559,1751.0,1750.9,0.05710777]
[1743947809788,5.69263559,1751.0,1750.7,12.807]
[1743947809953,5.69263559,1751.1,1750.7,12.807]
[1743947810157,5.69263559,1751.1,1750.8,0.05711103]
[1743947810483,5.69263559,1751.1,1750.8,0.05711093]
[1743947810688,3.0,1751.0,1750.6,12.758]
[1743947810888,6.99826,1750.8,1750.4,41.099]
[1743947811099,0.06636648,1750.9,1750.4,41.099]
[1743947811455,3.0,1750.8,1750.4,41.099]
[1743947811787,0.06636648,1750.7,1750.4,41.099]
[1743947812690,0.92819913,1750.7,1750.1,0.05]
[1743947812861,6.9992,1750.4,1750.1,0.05]
[1743947813055,3.06636648,1750.3,1750.1,0.05]
[1743947813260,0.06636648,1750.3,1750.1,0.05]
[1743947813685,0.06636648,1750.5,1750.1,0.05]
[1743947813862,12.69136559,1750.6,1750.1,0.05]
[1743947813863,8.69263559,1750.6,1750.1,0.05]
[1743947814058,8.75900207,1750.6,1750.1,4.04962]
[1743947814295,8.69263559,1750.6,1750.1,0.05]
[1743947814473,13.18014018,1750.6,1750.1,0.05]
[1743947814665,3.0,1750.5,1750.1,0.05]
[1743947814866,0.06636648,1750.4,1750.1,0.05]
[1743947815067,4.06550648,1750.4,1750.1,0.05]
[1743947815268,0.06636648,1750.4,1750.1,0.05]
[1743947815461,3.0,1750.5,1750.1,0.05]
[1743947816995,3.06636648,1750.5,1750.1,0.05]
[1743947817297,12.75786207,1750.5,1750.1,0.05]
[1743947817465,12.69149559,1750.5,1750.1,0.05]
[1743947817666,0.06636648,1750.4,1750.1,0.05]
[1743947817999,4.06547648,1750.4,1750.1,0.05]
[1743947818175,0.06636648,1750.4,1750.1,0.05]
[1743947818590,4.06562648,1750.4,1750.1,0.05]
[1743947818906,12.69148559,1750.5,1750.1,0.05]
[1743947818907,8.69263559,1750.5,1750.1,0.05]
[1743947819708,0.06636648,1750.4,1750.1,0.05]
[1743947819882,12.75793207,1750.5,1750.1,0.05]
[1743947820078,12.69156559,1750.5,1750.1,0.05]
[1743947820279,0.06636648,1750.4,1750.1,0.05]
[1743947821617,3.9995,1750.3,1750.1,0.05]
[1743947821820,8.66080648,1750.2,1750.1,0.05]
[1743947822477,9.21080648,1750.2,1750.1,0.05]
[1743947822681,12.64480648,1750.2,1750.1,0.05]
[1743947822881,12.57844,1750.2,1750.1,0.05]
[1743947823097,14.236234,1750.2,1750.1,0.05]
[1743947823412,8.59444,1750.2,1750.1,0.05]
[1743947823620,4.66126648,1750.2,1750.1,0.05]
[1743947823783,3.46126648,1750.2,1750.1,0.05]
[1743947823980,1.8,1750.2,1750.1,0.05]
[1743947824179,0.06636648,1750.3,1750.1,0.05]
[1743947824385,0.06636648,1750.4,1750.1,0.05]
[1743947824610,1.66126648,1750.5,1750.1,0.05]
[1743947825314,4.66126648,1750.5,1750.1,0.05]
[1743947825517,5.83991946,1750.5,1750.1,0.05]
[1743947825898,3.99952,1750.3,1750.1,0.05]
[1743947826098,0.06636648,1750.2,1750.1,0.05]
[1743947826298,7.06590648,1750.2,1750.1,0.05]
[1743947826793,8.17244913,1750.2,1750.1,0.05]
[1743947827004,4.00102,1749.6,1749.1,0.05]
[1743947827207,0.06636648,1749.5,1749.1,0.05]
[1743947827395,3.06636648,1749.5,1749.1,0.05]
[1743947827609,0.06636648,1749.5,1749.1,0.05]
[1743947827915,0.49565046,1749.5,1749.1,0.05]
[1743947828119,0.06636648,1749.5,1749.1,0.05]
[1743947828294,4.53373313,1749.5,1749.1,0.05]
[1743947828494,3.0,1749.4,1749.1,0.05]
[1743947828699,0.06636648,1749.5,1749.1,0.05]
[1743947828894,1.66126648,1749.6,1749.1,0.05]
[1743947829822,3.0,1749.5,1749.1,0.05]
[1743947830193,0.06636648,1749.4,1749.1,0.05]
[1743947831320,3.0,1749.4,1749.1,0.05]
[1743947831524,0.06636648,1749.3,1749.1,0.05]
[1743947831821,3.06636648,1749.4,1749.1,0.05]
[1743947832123,5.59848,1749.9,1749.2,0.05717031]
[1743947832337,4.06692648,1749.8,1749.1,0.05]
[1743947832543,0.06636648,1749.8,1749.2,0.05715823]
[1743947832722,5.69263559,1750.0,1749.4,4.00127]
[1743947833042,3.0,1749.9,1749.5,15.69627844]
[1743947833207,5.69263559,1750.0,1749.6,4.00072]
[1743947833424,5.69263559,1750.0,1749.9,4.00022]
[1743947833644,5.69263559,1750.1,1749.9,4.00022]
[1743947833966,5.69263559,1750.1,1750.0,1.5745]
[1743947834634,5.69263559,1750.1,1750.0,5.5745]
[1743947835101,5.69263559,1750.1,1750.0,1.5745]
[1743947835500,5.69263559,1750.1,1750.0,11.519]
[1743947836152,5.64263559,1750.1,1750.0,11.519]
[1743947836512,0.06636648,1750.3,1750.0,11.519]
[1743947836734,4.06583648,1750.3,1750.0,11.519]
[1743947836905,6.99974,1750.2,1749.7,52.597]
[1743947837100,4.00012,1750.0,1749.7,41.148]
[1743947837335,3.4993892,1750.1,1749.7,41.148]
[1743947837752,7.4991592,1750.1,1749.7,41.148]
[1743947838213,7.4991692,1750.1,1749.7,41.148]
[1743947838444,7.00025,1749.9,1749.7,41.148]
[1743947838674,0.06636648,1750.0,1749.7,41.148]
[1743947838833,3.0,1750.1,1749.7,41.148]
[1743947839538,3.06636648,1750.1,1749.7,41.148]
[1743947839758,7.06630648,1750.1,1749.7,41.148]
[1743947839929,3.0,1750.1,1749.7,41.148]
[1743947840531,3.0,1749.8,1749.1,1.6245]
[1743947840761,7.06693648,1749.8,1749.2,11.273]
[1743947841182,11.06760648,1749.8,1749.2,11.273]
[1743947841776,4.00072,1749.7,1749.2,11.273]
[1743947841982,3.0,1749.6,1749.2,11.273]
[1743947842141,7.00092,1749.6,1749.1,1.6245]
[1743947842338,3.0,1749.4,1749.1,0.05]
[1743947842543,0.06636648,1749.3,1749.1,0.05]
[1743947842760,0.06636648,1749.4,1749.1,0.05]
[1743947842936,3.49690401,1749.5,1749.1,0.05]
[1743947843141,7.49806401,1749.5,1749.1,0.05]
[1743947843380,3.0,1749.4,1749.1,0.05]
[1743947843541,4.49804401,1749.5,1749.1,0.05]
[1743947844436,7.00176,1749.3,1749.1,0.05]
[1743947844985,7.06812648,1749.3,1749.1,0.05]
[1743947845593,4.00182,1749.2,1749.1,0.05]
[1743947845957,8.10881465,1749.2,1749.1,0.05]
[1743947846210,9.72011465,1749.2,1749.1,0.05]
[1743947846416,10.23350367,1749.2,1749.1,0.05]
[1743947846906,11.29695361,1749.2,1749.1,0.05]
[1743947847113,4.00321,1748.6,1748.1,0.05]
[1743947847401,3.0,1748.3,1748.1,0.05]
[1743947847587,7.07047648,1748.2,1748.1,0.05]
[1743947848412,7.07047648,1748.2,1748.1,0.0484979]
[1743947848590,4.00533,1747.7,1747.3,41.15]
[1743947848912,3.06636648,1747.6,1747.3,41.15]
[1743947849112,3.06636648,1747.6,1747.1,0.05]
[1743947849482,7.07195648,1747.6,1747.1,0.05]
[1743947849822,11.07761648,1747.6,1747.1,0.05]
[1743947850118,4.00576,1747.5,1747.1,0.05]
[1743947850319,0.06636648,1747.4,1747.1,0.05]
[1743947850509,0.06636648,1747.5,1747.1,0.05]
[1743947850710,0.06636648,1748.0,1747.3,1.5911]
[1743947850911,1.5279,1748.5,1747.4,4.06316365]
[1743947851086,0.42826723,1748.4,1747.8,4.00484]
[1743947851285,1.59426648,1748.5,1747.9,4.00469]
[1743947851286,5.73739827,1748.1,1747.9,4.00469]
[1743947851487,5.73739827,1748.1,1747.9,1.5911]
[1743947852090,5.73739827,1748.1,1747.8,10.859]
[1743947852819,3.0,1748.0,1747.8,10.859]
[1743947852990,0.06636648,1747.9,1747.8,10.859]
[1743947853189,0.06636648,1747.9,1747.5,41.173]
[1743947853809,4.07127648,1747.9,1747.5,41.173]
[1743947854535,0.06636648,1747.9,1747.5,41.173]
[1743947854742,4.07126648,1747.9,1747.5,41.173]
[1743947854916,0.06636648,1747.9,1747.5,41.173]
[1743947855117,3.0,1748.0,1747.5,41.173]
[1743947855434,0.06636648,1748.0,1747.5,41.173]
[1743947856510,7.42318077,1748.4,1747.6,5.60745]
[1743947856705,0.06636648,1748.3,1747.6,5.60745]
[1743947856931,3.0,1748.2,1747.6,1.6021]
[1743947857132,0.06636648,1748.1,1747.6,1.6021]
[1743947857315,0.06636648,1748.1,1747.5,41.173]
[1743947857316,3.0,1748.0,1747.5,41.173]
[1743947857521,0.06636648,1747.9,1747.5,41.173]
[1743947858014,0.06636648,1748.3,1747.6,4.00535]
[1743947858215,3.06636648,1748.3,1747.7,4.00517]
[1743947858410,0.06636648,1748.4,1747.6,4.00549]
[1743947858729,0.06636648,1748.6,1747.9,1.6021]
[1743947858916,7.31719827,1748.9,1748.2,4.00394]
[1743947859116,7.31719827,1748.9,1748.3,4.00385]
[1743947859329,7.31719827,1748.9,1748.3,8.00756]
[1743947859540,5.73739827,1748.9,1748.3,4.00371]
[1743947859725,5.73739827,1748.9,1748.3,8.00742]
[1743947859911,3.0,1748.8,1748.3,8.00742]
[1743947860242,3.06636648,1748.8,1748.1,8.00833]
[1743947860448,0.06636648,1748.8,1748.2,4.0041]
[1743947860644,0.06636648,1748.8,1748.3,4.06103012]
[1743947860851,3.0,1748.8,1748.4,4.00355]
[1743947861019,5.73739827,1748.9,1748.4,4.00355]
[1743947861344,5.73739827,1748.9,1748.3,4.00384]
[1743947861345,5.73739827,1748.9,1748.2,4.0041]
[1743947861537,0.06636648,1748.8,1748.2,4.0041]
[1743947861842,3.06636648,1748.8,1748.3,4.06106016]
[1743947862046,3.06636648,1748.8,1748.3,4.00387]
[1743947862346,3.06636648,1748.8,1747.9,5.60687]
[1743947862347,3.0,1748.7,1747.9,5.60673]
[1743947862652,4.00355,1748.5,1748.0,10.478]
[1743947862837,0.06636648,1748.4,1748.0,10.478]
[1743947863226,3.0,1748.8,1748.3,4.00373]
[1743947863428,4.06928648,1748.8,1748.0,14.48242]
[1743947863640,3.06636648,1748.8,1748.2,4.00408]
[1743947864013,7.06919648,1748.8,1748.0,10.478]
[1743947864253,3.0,1748.6,1748.0,14.48248]
[1743947864422,3.06636648,1748.6,1748.0,10.478]
[1743947864626,0.06636648,1748.6,1748.0,14.4824]
[1743947864948,4.06966648,1748.6,1748.0,10.478]
[1743947865247,0.06636648,1748.6,1748.1,4.06131687]
[1743947865452,0.06636648,1748.7,1748.1,4.06131687]
[1743947865747,0.42482705,1749.0,1748.3,4.00372]
[1743947865948,0.06636648,1748.9,1748.2,1.6021]
[1743947866248,0.06636648,1748.9,1748.2,5.60617]
[1743947866440,0.06636648,1749.2,1748.3,0.0571882]
[1743947866642,0.06636648,1749.2,1748.7,4.00288]
[1743947866945,5.80376475,1749.4,1748.9,4.00247]
[1743947867161,5.73739827,1749.4,1749.0,4.00218]
[1743947867357,5.73739827,1749.4,1748.8,15.93683]
[1743947867647,5.73739827,1749.4,1748.9,4.00251]
[1743947867828,5.73739827,1749.4,1749.2,4.0018]
[1743947868218,5.73739827,1749.4,1749.0,4.00218]
[1743947868420,5.73739827,1749.5,1749.0,4.00218]
[1743947868621,0.06636648,1749.4,1748.8,15.93683]
[1743947868953,4.0017,1749.3,1748.8,10.332]
[1743947869160,0.06636648,1749.2,1748.8,10.332]
[1743947869452,3.06636648,1749.2,1748.8,10.332]
[1743947869655,0.06636648,1749.2,1748.8,10.332]
[1743947869855,3.06636648,1749.2,1748.8,10.332]
[1743947870451,1.63586648,1749.3,1748.8,10.332]
[1743947871059,3.0,1749.1,1748.8,10.332]
[1743947871228,7.06844648,1749.1,1748.8,10.332]
[1743947871552,7.06841648,1749.1,1748.6,10.172]
[1743947871924,3.06636648,1749.1,1748.6,10.172]
[1743947872353,4.06845648,1749.1,1748.6,10.172]
[1743947872927,0.06636648,1749.1,1748.5,5.52841]
[1743947873232,3.0,1749.2,1748.8,4.00273]
[1743947873439,3.0,1749.2,1748.6,14.11516]
[1743947873636,3.06636648,1749.2,1748.6,14.11516]
[1743947874033,3.06636648,1749.2,1748.6,14.11508]
[1743947874354,3.06636648,1749.2,1748.7,4.05993522]
[1743947874558,3.0,1749.2,1748.7,4.05993522]
[1743947874948,0.06636648,1749.4,1748.8,4.0026]
[1743947875150,3.06636648,1749.4,1748.7,4.00296]
[1743947875352,7.06773648,1749.4,1748.7,4.00296]
[1743947875758,3.06636648,1749.4,1748.7,8.00582]
[1743947876062,0.06636648,1749.4,1748.9,8.00488]
[1743947876241,0.06636648,1749.5,1748.9,4.00238]
[1743947876442,3.06636648,1749.5,1749.0,0.05717033]
[1743947876627,3.06636648,1749.5,1748.8,8.00536]
[1743947876832,3.06636648,1749.5,1748.9,4.00233]
[1743947877764,3.06636648,1749.5,1748.9,4.0025]
[1743947878060,7.06764648,1749.5,1748.8,4.00272]
[1743947878236,7.06764648,1749.5,1749.0,9.926]
[1743947878443,8.32701413,1749.5,1749.0,9.926]
[1743947878648,3.0,1749.3,1748.7,4.00292]
[1743947878859,3.06636648,1749.3,1748.8,9.895]
[1743947879575,0.06636648,1749.3,1748.8,9.895]
[1743947879780,7.00175,1749.3,1748.8,9.895]
[1743947880077,3.06636648,1749.3,1748.7,4.06013431]
[1743947880282,7.06797648,1749.3,1748.9,9.852]
[1743947880467,3.06636648,1749.3,1748.9,9.852]
[1743947880666,7.06796648,1749.3,1748.9,9.852]
[1743947880839,3.06636648,1749.3,1748.9,9.852]
[1743947881042,0.06636648,1749.2,1748.9,9.852]
[1743947881474,3.0,1749.1,1748.9,9.852]
[1743947881673,4.06873648,1749.0,1748.7,9.795]
[1743947881879,3.0,1748.9,1748.4,41.18]
[1743947882079,3.0,1748.9,1748.6,9.785]
[1743947882462,0.06636648,1748.8,1748.4,41.18]
[1743947882779,4.00286,1748.8,1748.4,41.18]
[1743947882958,0.06636648,1748.7,1748.4,41.18]
[1743947883359,3.0,1748.8,1748.5,0.05718845]
[1743947883566,0.06636648,1749.0,1748.5,4.06059845]
[1743947883770,1.6556,1749.1,1748.6,4.00311]
[1743947883970,1.6556,1749.1,1748.7,0.05717723]
[1743947884171,5.73739827,1749.2,1748.9,4.00242]
[1743947884479,5.73739827,1749.2,1749.0,9.76416833]
[1743947884692,5.73739827,1749.2,1749.1,4.00205]
[1743947886583,5.73739827,1749.2,1749.1,5.69231379]
[1743947886750,5.73739827,1749.2,1749.1,1.6331]
[1743947887289,5.73739827,1749.2,1749.1,5.63515]
[1743947887656,5.73739827,1749.2,1749.1,1.6331]
[1743947887857,5.73739827,1749.2,1749.1,5.63515]
[1743947888264,5.73739827,1749.2,1749.1,1.6331]
[1743947888476,4.00087,1749.7,1749.1,1.6331]
[1743947888783,3.0,1749.6,1749.1,1.6331]
[1743947889581,3.0,1749.6,1749.1,5.63499]
[1743947889789,3.0,1749.6,1749.2,4.00173]
[1743947890284,3.0,1749.6,1749.1,5.63513]
[1743947890493,3.0,1749.6,1749.1,1.6331]
[1743947890785,3.0,1749.4,1749.0,41.163]
[1743947891196,1.73166648,1749.5,1749.1,9.473]
[1743947891584,5.73287648,1749.5,1749.1,9.473]
[1743947891781,1.73166648,1749.5,1749.1,9.473]
[1743947891984,3.0,1749.6,1749.1,17.47684]
[1743947892289,3.0,1749.6,1749.1,9.473]
[1743947892597,3.0,1749.6,1749.1,13.475]
[1743947892795,3.0,1749.6,1749.2,4.00175]
[1743947892982,5.73739827,1749.7,1749.4,4.00133]
[1743947893159,5.73739827,1749.7,1749.2,4.0016]
[1743947893360,5.73739827,1749.7,1749.2,5.749265]
[1743947893576,5.73739827,1749.7,1749.4,4.00136]
[1743947894195,9.73809827,1749.7,1749.1,13.47499]
[1743947894392,9.73809827,1749.7,1749.0,45.16526]
[1743947894597,3.0,1749.6,1749.2,9.37]
[1743947895105,4.00114,1749.5,1749.2,9.37]
[1743947895997,4.50245434,1749.5,1749.2,9.37]
[1743947897408,4.50245434,1749.5,1749.0,41.163]
[1743947897603,4.50245434,1749.5,1749.1,9.271]
[1743947897909,4.00147,1749.4,1749.1,9.271]
[1743947898280,4.00137,1749.4,1749.1,9.271]
[1743947898482,4.06808648,1749.3,1749.0,50.408]
[1743947898688,4.00238,1749.0,1748.6,9.237]
[1743947898981,3.0,1748.7,1748.3,41.158]
[1743947899187,4.06949648,1748.7,1748.3,41.158]
[1743947899402,7.06949648,1748.7,1748.3,50.396]
[1743947899583,3.0,1748.7,1748.3,54.39981]
[1743947899790,3.0,1748.7,1748.3,50.396]
[1743947900188,7.06934648,1748.7,1748.3,50.396]
[1743947900390,3.0,1748.5,1748.3,50.396]
[1743947900601,7.50056475,1748.7,1748.3,50.396]
[1743947901309,3.49758475,1748.7,1748.3,50.396]
[1743947901487,0.06636648,1748.6,1748.3,50.396]
[1743947901687,3.43121827,1748.7,1748.4,0.05719118]
[1743947902013,3.0,1748.7,1748.4,0.05719118]
[1743947902716,5.73739827,1748.5,1748.4,4.06085118]
[1743947902913,5.73739827,1748.5,1748.4,4.00366]
[1743947903101,5.4236343,1748.5,1748.4,5.6698436]
[1743947903305,4.91516858,1748.5,1748.4,6.16266]
[1743947903918,4.91516858,1748.5,1748.4,5.61266]
[1743947904313,4.91516858,1748.5,1748.4,1.609]
[1743947904500,4.91516858,1748.5,1748.4,5.61266]
[1743947905624,4.91516858,1748.5,1748.4,6.16266]
[1743947905993,2.30369782,1749.0,1748.6,4.00317]
[1743947906320,2.30369782,1749.0,1748.4,5.61253]
[1743947906490,9.3723543,1749.0,1748.3,45.16187]
[1743947906691,4.00278,1748.8,1748.4,9.029]
[1743947906890,2.30369782,1749.0,1748.5,0.05718124]
[1743947907120,0.06636648,1748.9,1748.5,0.05718124]
[1743947907302,0.06636648,1748.9,1748.4,9.029]
[1743947907508,7.00284,1748.8,1748.4,9.029]
[1743947907705,3.0,1748.8,1748.4,9.029]
[1743947907884,11.00569,1748.8,1748.4,9.029]
[1743947908090,11.51153189,1748.8,1748.4,9.029]
[1743947908414,11.44516541,1748.8,1748.4,9.029]
[1743947908624,4.06939648,1748.7,1748.4,9.029]
[1743947908821,5.50574,1748.6,1748.3,41.158]
[1743947909127,4.5024,1748.6,1748.3,41.158]
[1743947909288,6.80609782,1748.6,1748.3,41.158]
[1743947910219,2.30369782,1748.6,1748.3,43.99511272]
[1743947910383,2.30369782,1748.6,1748.4,4.06076042]
[1743947910583,2.30369782,1748.6,1748.3,41.158]
[1743947911917,5.30369782,1748.6,1748.3,41.158]
[1743947912231,5.30369782,1748.5,1748.3,41.158]
[1743947912389,5.30369782,1748.5,1748.3,41.108]
[1743947912715,2.30369782,1748.5,1748.3,41.108]
[1743947914129,2.30369782,1748.5,1748.3,45.11177]
[1743947914333,2.30369782,1748.5,1748.3,41.108]
[1743947914926,2.30369782,1748.5,1748.3,45.11185]
[1743947915102,3.4868747,1748.8,1748.3,41.108]
[1743947915417,7.4898047,1748.8,1748.3,41.108]
[1743947915612,4.00305,1748.7,1748.3,41.108]